Cogmind - Beta 15 @@@ ROGUE MODE // 2025.07.23 @ 18:35:02 Player: Skysub Result: Destroyed by Autobeam Turret with Autobeam Performance ------------- Evolutions (0) 0 Regions Visited (2) 400 Robots Destroyed (36) 180 Value Destroyed (950) 950 Prototype IDs (1) 20 Alien Tech Used (0) 0 Bonus (0) 0 TOTAL SCORE: 1550 Bonus ------- None Cogmind --------- Core Integrity 0/250 Matter 120/300 Energy 100/100 System Corruption 0% Temperature Cool (24) Movement Rolling (110) Location -10/Subcaves Parts ------- > --- POWER (1) -------- (None) > --- PROPULSION (2) --- Subdweller Monowheel > --- UTILITY (2) ------ Medium Storage Unit Makeshift Light Armor Plating > --- WEAPON (2) ------- Improved Medium Laser > --- INVENTORY (10) --- Structural Scanner Subdweller Optics Medium Armor Plating Subdweller Laser Subdweller Beam Cannon Subdweller Machine Gun Barrage Gun Grenade Launcher Mining Laser Peak State ------------ > --- POWER ------------ Subdweller Power Source > --- PROPULSION ------- Subdweller Monowheel Subdweller Monowheel > --- UTILITY ---------- Medium Storage Unit Makeshift Light Armor Plating > --- WEAPON ----------- Improved Medium Laser Barrage Gun > --- INVENTORY -------- Subdweller Monowheel Improved Heat Sink Structural Scanner Subdweller Optics Signal Interpreter Medium Armor Plating Subdweller Machine Gun Grenade Launcher Grenade Launcher Mining Laser [Rating: 18] Favorites ----------- Power Light Ion Engine Engine Light Ion Engine Propulsion Light Treads Treads Light Treads Wheel Subdweller Monowheel Utility Medium Storage Unit Device Structural Scanner Storage Medium Storage Unit Protection Medium Armor Plating Weapon Improved Medium Laser Energy Gun Improved Medium Laser Ballistic Gun Assault Rifle Ballistic Cannon Light Cannon Launcher Grenade Launcher Special Weapon Mining Laser Build | -11 -10 -10 ------- Run | Yrd Mat Sub Slots Evolved . | . . . Power . | . . . Propulsion . | . . . Utility . | . . . Weapon . | . . . Parts Attached 28 | 6 8 14 Power 4 | 1 1 2 Engine 4 | 1 1 2 Core . | . . . Reactor . | . . . Propulsion 6 | 2 . 4 Treads 2 | 2 . . Leg . | . . . Wheel 4 | . . 4 Hover . | . . . Flight . | . . . Utility 8 | 1 4 3 Device 1 | . . 1 Storage 2 | 1 1 . Processor . | . . . Hackware . | . . . Protection 5 | . 3 2 Artifact . | . . . Weapon 10 | 2 3 5 Energy Gun 2 | . 1 1 Energy Cannon . | . . . Ballistic Gun 4 | 2 1 1 Ballistic Cannon 2 | . 1 1 Launcher 1 | . . 1 Special Weapon 1 | . . 1 Impact Weapon . | . . . Slashing Weapon . | . . . Piercing Weapon . | . . . Special Melee Weapon . | . . . Unidentified Prototypes 1 | . 1 . Parts Lost 11 | . 4 7 Power 2 | . 1 1 Propulsion 4 | . . 4 Utility 1 | . 1 . Weapon 4 | . 2 2 Highest Loss Streak 2 | . 2 2 To Critical Strikes . | . . . Average Backups 8 | 3 8 9 Power . | . . . Propulsion 1 | 1 2 . Utility 3 | . 2 3 Weapon 3 | 1 3 4 Tool/Special . | . . . Unused Backups 10 | . 2 8 Power 1 | . 1 . Propulsion 1 | . . 1 Utility 3 | . . 3 Weapon 5 | . 1 4 Tool/Special . | . . . Average Slot Usage (%) 93 | . 92 95 Engine 11 | . 8 13 Treads 19 | . 28 10 Wheel 6 | . . 13 Device 5 | . . 10 Storage 14 | . 14 14 Protection 8 | . 12 3 Energy Gun 9 | . 4 13 Ballistic Gun 11 | . 20 . Ballistic Cannon 2 | . 1 3 Launcher 1 | . . 3 Special Weapon 3 | . . 6 Peak Build Rating 18 | 6 11 18 Average Rating 10 | 4 8 12 On Entrance 5 | . 6 11 Naked Turns . | . . . Heaviest Build 26 | 11 26 26 Greatest Support 40 | 40 40 40 Greatest Overweight (x) 2 | . . 2 Average Overweight (x) . | . . . Largest Inventory Capacity 10 | 8 10 10 Average Capacity 9 | 6 9 10 Most Carried 10 | 5 10 10 Average Carried 8 | 3 8 9 Final Capacity 10 | 8 10 10 Final Carried 10 | 5 10 9 Class Distribution -------------------- 100% | Mutant Dominant Class ---------------- Mutant | -10/Materials Mutant | -10/Subcaves Resources | -11 -10 -10 ----------- Run | Yrd Mat Sub Matter Collected 916 | 196 484 236 Remotely . | . . . Salvage Created 1216 | 23 910 283 Parts 62 | 4 43 15 Haulers Intercepted 1 | . 1 . Recyclers Shooed . | . . . Parts Field Recycled . | . . . Retrieved Matter . | . . . Parts Self-Destructed 9 | . . 9 Prevented . | . . . Kills | -11 -10 -10 ------- Run | Yrd Mat Sub Combat Hostiles Destroyed 29 | . 17 12 Guns 23 | . 17 6 AOE 6 | . . 6 Classes Destroyed 8 | 1 6 1 Builder 1 | . 1 . Tunneler 1 | 1 . . Hauler 1 | . 1 . Recycler 2 | . 2 . Watcher 2 | . 2 . Swarmer 7 | . 3 4 Grunt 14 | . 14 . Subdweller 8 | . . 8 Best Kill Streak 4 | 1 3 4 Combat Bots Only 4 | . 3 4 Max Kills in Single Turn 2 | 1 2 2 Gunslinging . | . . . Exploded 2 | . . 2 Melee . | . . . Uniques/NPCs Destroyed . | . . . Combat | -11 -10 -10 -------- Run | Yrd Mat Sub Hostile Shots Fired 168 | . 92 76 Missed 44 | . 25 19 Hits 124 | . 67 57 Projectile 124 | . 67 57 Critical Strikes 1 | . . 1 Damage Taken 1721 | . 741 980 Core 254 | . 34 220 Absorbed by Shields . | . . . Core Remaining (%) 100 | 100 . . Volleys Fired 124 | 1 79 44 Largest 2 | 2 2 2 Hottest 100 | 40 86 100 Shots Fired 228 | 2 155 71 Gun 188 | 2 151 35 Cannon 15 | . 4 11 Launcher 15 | . . 15 Special 10 | . . 10 Kinetic 165 | 2 144 19 Thermal 48 | . 11 37 Explosive 15 | . . 15 Electromagnetic . | . . . Robot Hit Streak 11 | 1 8 11 Robot Miss Streak 5 | 1 5 2 Penetration Max . | . . . Secondary Targets 6 | . 5 1 Max Gunslinging Chain 1 | . 1 1 Shots Hit Robots 138 | 1 96 41 Core Hits 63 | 1 39 23 Critical Kills . | . . . Critical Parts Destroyed 2 | . 2 . Critical Strikes 5 | . 3 2 Burn 2 | . . 2 Destroy 2 | . 2 . Blast 1 | . 1 . Melee Attacks . | . . . Impact . | . . . Slashing . | . . . Piercing . | . . . Sneak Attacks . | . . . Combat Hostiles . | . . . Follow-up Attacks . | . . . Damage Inflicted 2582 | 10 1231 1341 Guns 1622 | 10 1160 452 Cannons 199 | . 67 132 Explosions 757 | . . 757 Melee . | . . . Ramming 4 | . 4 . Kinetic 1358 | 10 1090 258 Thermal 463 | . 137 326 Explosive 757 | . . 757 Electromagnetic . | . . . Impact . | . . . Slashing . | . . . Piercing . | . . . Highest Corruption . | . . . Average Corruption . | . . . Corruption Purged . | . . . Corruption Blocked . | . . . Overload Shots . | . . . Overflow Damage . | . . . Projectiles . | . . . Explosions . | . . . Melee . | . . . Knockbacks 2 | . . 2 Impact . | . . . Kinetic 2 | . . 2 Secondary . | . . . Self-Inflicted Damage 41 | . . 41 Shots 2 | . . 2 Rammed 4 | . 4 . Targets Rammed 4 | . 4 . Kicked . | . . . Crushed . | . . . Highest Temperature 81 | . 81 23 Average Temperature 15 | . 15 14 Received Heat Transfer 579 | . 354 225 Siege Activations . | . . . Martial Activations . | . . . Shielding Activations . | . . . Robots Disrupted . | . . . Combat Hostiles . | . . . Robots Corrupted . | . . . Combat Hostiles . | . . . Parts Fried . | . . . Impact Corruptions . | . . . Robots Melted . | . . . Combat Hostiles . | . . . Parts Melted 2 | . 1 1 Heat Transferred 1147 | . 296 851 Parts Sabotaged . | . . . Parts Stolen . | . . . Parts Stripped . | . . . Power Chain Reactions . | . . . Alert | -11 -10 -10 ------- Run | Yrd Mat Sub Maximum Alert Level . | . . . Low Security (%) 100 | 100 100 . Level 1 . | . . . Level 2 . | . . . Level 3 . | . . . Level 4 . | . . . Level 5 . | . . . High Security . | . . . Max Security . | . . . Peak Influence 138 | 5 138 . Initial . | . . . Average 71 | . 75 . Influence Increases 898 | 5 558 335 Destroy 0b10 Robot/C 420 | . 340 80 Destroy 0b10 Robot/NC 35 | 5 30 . Destroy Leader 76 | . 76 . Successful Hack 36 | . 36 . Select Force Hacks 60 | . 60 . Destroy Structure 1 | . 1 . Lose Combat Pursuer 270 | . 15 255 Influence Decreases 587 | 5 484 98 Entered New Map 36 | . . 36 Time Decay 491 | 5 444 42 Lost Part 60 | . 40 20 Squads Dispatched 4 | . 4 . Investigation 3 | . 3 . Extermination . | . . . Reinforcement 1 | . 1 . Assault . | . . . Garrison . | . . . Intercept . | . . . Searches Triggered . | . . . Construction Impeded . | . . . Haulers Reinforced . | . . . Active Scanning Responses . | . . . Cargo Convoy Interrupts . | . . . Stealth | -11 -10 -10 --------- Run | Yrd Mat Sub Distress Signals 5 | . 5 . Communications Jammed . | . . . Distress Signals . | . . . Times Spotted 45 | . 26 19 Peak Tracking Total 4 | . 4 3 Tactical Retreats 3 | . 1 2 Traps | -11 -10 -10 ------- Run | Yrd Mat Sub Traps Triggered 2 | . 1 1 Indirectly . | . . . Trap Hack Attempts . | . . . Triggered . | . . . Disarmed . | . . . Reprogrammed . | . . . Reused . | . . . Traps Extracted . | . . . Installed . | . . . Triggered . | . . . Machines | -11 -10 -10 ---------- Run | Yrd Mat Sub Machines Disabled 3 | . . 3 Max in Single Turn 2 | . . 2 Machines Repaired . | . . . Machines Dismantled . | . . . Machines Sabotaged . | . . . Overloaded Fab Kills . | . . . Hacking | -11 -10 -10 --------- Run | Yrd Mat Sub Machines Accessed 7 | . 7 . Terminals 5 | . 5 . Fabricators . | . . . Repair Stations . | . . . Recycling Units 2 | . 2 . Scanalyzers . | . . . Garrison Access . | . . . Total Hacks 23 | . 23 . Successful 13 | . 13 . Failed 10 | . 10 . Catastrophic 2 | . 2 . Database Lockouts . | . . . Manual 17 | . 17 . Terminals 16 | . 16 . Fabricators . | . . . Repair Stations . | . . . Recycling Units 7 | . 7 . Scanalyzers . | . . . Garrison Access . | . . . Terminal Hacks 2 | . 2 . Branch Access Points 1 | . 1 . Zone Layout 1 | . 1 . Fabricator Hacks . | . . . Repair Station Hacks . | . . . Recycling Unit Hacks 2 | . 2 . Report Inventory 2 | . 2 . Scanalyzer . | . . . Garrison Access Hacks . | . . . Unauthorized Hacks 9 | . 9 . Terminals 7 | . 7 . Assimilate 1 | . 1 . Botnet 1 | . 1 . Skim 5 | . 5 . Fabricators . | . . . Repair Stations . | . . . Recycling Units 2 | . 2 . Tunnel 2 | . 2 . Scanalyzers . | . . . Garrison Access . | . . . Data Cores Recovered . | . . . Used . | . . . Hacking Detections 7 | . 7 . Full Trace Events . | . . . Feedback Events . | . . . Feedback Blocked . | . . . Robot Schematics Acquired . | . . . Robots Built . | . . . Authchips . | . . . Time . | . . . Total Robot Build Rating . | . . . Part Schematics Acquired . | . . . Parts Built . | . . . Authchips . | . . . Time . | . . . Total Part Build Rating . | . . . Parts Repaired . | . . . Time . | . . . Parts Recycled . | . . . Recycled Matter . | . . . Retrieved Matter . | . . . Retrieved Components . | . . . Parts Scanalyzed . | . . . Part Schematics Acquired . | . . . Parts Damaged . | . . . Bothacking | -11 -10 -10 ------------ Run | Yrd Mat Sub Used RIF Installer . | . . . Robots Hacked . | . . . Non-combat . | . . . Combat . | . . . Robot Hacks Applied . | . . . Relay Couplers Released . | . . . Fabnet Peak Effective % . | . . . Robots Rewired . | . . . Allies Hacked . | . . . Hacks Repelled . | . . . Allies | -11 -10 -10 -------- Run | Yrd Mat Sub Total Allies 1 | . 1 . Largest Group 1 | . 1 1 Highest-Rated Group 10 | . 10 6 Highest-Rated Ally 10 | . 10 6 Total Orders . | . . . Ally Attacks . | . . . Total Damage . | . . . Kills . | . . . Allies Corrupted . | . . . Allies Melted . | . . . Intel | -11 -10 -10 ------- Run | Yrd Mat Sub Active Infowar (turns) 966 | . . 966 Structural 966 | . . 966 Robot Analysis Total . | . . . Derelict Logs Recovered . | . . . Drone Launches . | . . . Drone Recoveries . | . . . Exploration | -11 -10 -10 ------------- Run | Yrd Mat Sub Turns Passed 2613 | 83 1298 1232 Spaces Moved 1362 | 49 625 688 Core 10 | 10 . . Treads 732 | 39 625 68 Legs . | . . . Wheels 620 | . . 620 Hover . | . . . Flight . | . . . Fastest Speed 50 | 50 160 95 Average Speed 135 | 137 160 114 Slowest Speed 160 | 160 160 160 Overloaded Moves . | . . . Propulsion Burnouts . | . . . Robots Hopped . | . . . Potential Cave-ins . | . . . Cave-ins Triggered . | . . . Exploration Rate (%) 46 | 4 98 38 Regions Visited 2 Branch Regions 1 Pre-discovered Areas 4 | . 4 . Known Exits Taken 1 | . 1 . Unknown Exits Taken 1 | 1 . . Scrap Searched 6 | . . 6 Spaces Dug . | . . . Terrain Destroyed 44 | . . 44 Melee . | . . . Projectile . | . . . AOE 44 | . . 44 Terrain Rammed . | . . . Walls Destroyed . | . . . Machines Disabled . | . . . Actions | -11 -10 -10 --------- Run | Yrd Mat Sub Total 1876 | 60 776 1040 Wait 314 | . 44 270 Move 1360 | 48 624 688 Hop . | . . . Pick Up 23 | 5 10 8 Fast Attach 9 | 6 2 1 Attach 6 | . 3 3 Detach . | . . . Swap 22 | . 4 18 Drop 14 | . 6 8 Fire 124 | 1 79 44 Melee . | . . . Ram . | . . . Kick . | . . . Crush 4 | . 4 . Escape Stasis . | . . . Rewire . | . . . Trap . | . . . Miscellaneous . | . . . Route ------- -11/Scrapyard -10/Materials (discovered 5 exits: *Mat x3 / *Min / *Sub) -10/Subcaves (discovered 1 exit: [*Rec]) History --------- Turn | Location | Event 16 | -11/Scrapyard | Discovered new exit (range 15) 84 | -11/Scrapyard | Entered Materials 316 | -10/Materials | Build established: Mutant 446 | -10/Materials | Discovered new exit (range 5) 527 | -10/Materials | Discovered new exit (range 8) 613 | -10/Materials | Discovered new exit (range 9) 656 | -10/Materials | Identified exit to Mines 705 | -10/Materials | Discovered new exit (range 13) 1046 | -10/Materials | Learned 2 Storage zone layouts 1103 | -10/Materials | Identified exit to Materials 1121 | -10/Materials | Identified exit to Subcaves 1123 | -10/Materials | Learned 4 Recycling zone layouts 1382 | -10/Materials | Entered Subcaves 1382 | -10/Subcaves | Accompanied by 1 ally 2096 | -10/Subcaves | Shifting Twisted Machinery released Sub. Monowheel 2129 | -10/Subcaves | Shifting Twisted Machinery released Sub. Power Source 2191 | -10/Subcaves | Core integrity fell below 50% 2315 | -10/Subcaves | Core integrity fell below 20% 2493 | -10/Subcaves | A swath of the cavern ceiling suddenly collapsed 2594 | -10/Subcaves | Discovered new exit (range 13) 2614 | -10/Subcaves | Destroyed by Autobeam Turret with Autobeam Last Messages --------------- 02318_ The unstable cave ceiling collapses. A swath of the cavern ceiling suddenly collapses. 02585_ S-10 Pest destroyed. 02587_ The unstable cave ceiling collapses. 02587_ Flight Unit crushed. 02590_ Lgt. Ion Engine fries itself beyond repair. 02594_ S-10 Pest destroyed. 02594_ EXIT=FOUND 02596_ The unstable cave ceiling collapses. 02596_ Broken Sub. Power Source destroyed. 02598_ Machine disabled. 02603_ Flight Unit fries itself beyond repair. 02611_ The unstable cave ceiling collapses. 02612_ Lgt. Ion Engine fries itself beyond repair. 02612_ Flight Unit fries itself beyond repair. 02613_ Machine disabled. 02614_ Grenade Launcher destroyed. Map ----- +----------------------------------------------------+ | ?????????????????????????????????????????????????? | | ?????????????????????????????????????????????????? | | ?????????????????????????????????????????????????? | | ?????????????????????????????????????????????????? | | ?????????????????????????????????????????????????? | | ?????????????????????????????????????????????????? | | ?????????????????????????????????????????????????? | | ?????????????????????????????????????????????????? | | ?????????????????????????????????????????????????? | | ?????????????????????????????????????????????????? | | ?????????????????????????????????????????????????? | | ?????????????????????????????????????????????????? | | ????????????????????????????#####????????????????? | | ???????????????????????????#< ## ?????????????? | | ??????????????????????????? %????????????? | | ??????????????????????????? ????????????? | | ?????????????#######???????t t ???????????? | | ?????????????#######?????? ????????????? | | ?????????????## ##?????? #?????????????? | | ?????????????### ##?????? #?????????????? | | ?????????????### ##?????? ???#??????????? | | ?????????????## ######### ##?? #??????????? | | ?????????????### ######## % # #??????????? | | ?????????????## ## % ??????????? | | ????????######### ## ##????????????????? | | ###?##############"# #@ # ????????????????? | | ##########"###"###""# ## ##?????????????????? | | #####""""#"#"#"""""" ### & ????????????? | | ###""##"" "#""##"##"### #????????? | | #""###"""#"###""#### ## ####?????????? | | #### "################# ## ###???????????? | | """# "###########?#################???????????? | | ## "## ############?????############????????????? | | ## ####"####### ####????????????????????????????? | | #######"###### ###????????????????????????????? | | ######" ##### ##????????????????????????????? | | ?## #### ##????????????????????????????? | | ?## ##????????????????????????????? | | ?## ##????????????????????????????? | | ?##### ## ##????????????????????????????? | | ####### ########????????????????????????????? | | ### ## ########????????????????????????????? | | ## ###?????????????????????????????????? | | ## ## ##?????????????????????????????????? | | ### ## ######?????????????????????????????? | | ###### ######???????#####?????????????????? | | ?##### ## #### ##??????#########??????????????? | | ???## ##### ###??######"#######????????????? | | ##### ### ###??##### """#####???????????? | | ##### ###?##"## "*""""###???????????? | +----------------------------------------------------+ Best States ------------- Heat Dissipation 25 Energy Generation 15 Energy Capacity 200 Matter Stores 300 Matter Capacity 300 Sight Range 16 Terrain Scan Density 10 Armor Coverage 225 Evasion (%) 50 Recoil Reduction 2 Item Schematics ----------------- None Robot Schematics ------------------ None Fabricated ------------ Nothing Repaired ---------- Nothing Alien Tech Used ----------------- None Achievements -------------- None Challenges ------------ None Game ------ Seed TrapSmartThruster Manual? 0 Play Time 00:20:04 Cumulative 178.7 hours Start 2025.07.23 @ 18:17:48 End 2025.07.23 @ 18:35:02 Sessions 1 Manual Loads 0 Difficulty Rogue Special Mode None Game No. 208 Rogue 208 Adventurer 0 Explorer 0 Win Type - Total 3 Types 1/0/0/1/0/0/0/0/0/1 Lore% 68 Gallery% 63 Achievement% 56 Wizard Run 0 Options --------- Layout 1 ASCII 0 Keyboard 1 Movement Arrows Keybinds 0 Fullscreen 1 Font 36/Smallcaps Map View 50x40 Zoom Use 0% Tactical HUD 1 Map Filters NONE Filters NONE Steam 1 RUN: 1e739ba0-09d4-4cd1-9641-f94df77728cf